Cogmind - Beta 13 @@@ ROGUE MODE // 2024.05.16 @ 22:06:34 Player: Gabe+Kate4EVR Result: Destroyed by Y-45 Defender with Heavy Assault Rifle Performance ------------- Evolutions (1) 500 Regions Visited (2) 400 Robots Destroyed (25) 125 Value Destroyed (462) 462 Prototype IDs (2) 40 Alien Tech Used (0) 0 Bonus (0) 0 TOTAL SCORE: 1527 Bonus ------- None Cogmind --------- Core Integrity 0/400 Matter 248/300 Energy 11/250 System Corruption 3% Temperature Cool (0) Movement Core (250) Ox4 Location -9/Materials Parts ------- > --- POWER (1) -------- Ion Engine > --- PROPULSION (4) --- (None) > --- UTILITY (2) ------ Medium Storage Unit > --- WEAPON (2) ------- (None) > --- INVENTORY (10) --- Flight Unit Flight Unit VTOL Module High-capacity Matter Pod (16) Authchip [Propulsion] Light Cannon Grenade Launcher Peak State ------------ > --- POWER ------------ Ion Engine > --- PROPULSION ------- Hover Unit Hover Unit Hover Unit Hover Unit > --- UTILITY ---------- Medium Storage Unit Hacking Suite > --- WEAPON ----------- Autogun Light Cannon > --- INVENTORY -------- Ion Engine Flight Unit Flight Unit Flight Unit Flight Unit High-capacity Matter Pod Improved Targeting Computer Light Cannon Grenade Launcher [Rating: 13] Favorites ----------- Power Ion Engine Engine Ion Engine Propulsion Aluminum Leg Leg Aluminum Leg Hover Unit Hover Unit Flight Unit Flight Unit Utility Small Storage Unit Device Cooling System Storage Small Storage Unit Hackware Hacking Suite Weapon Light Assault Rifle Energy Gun Small Laser Ballistic Gun Light Assault Rifle Ballistic Cannon Light Cannon Launcher Grenade Launcher Build | -11 -10 -9 ------- Run | Yrd Mat Mat Slots Evolved 2 | . . 2 Power . | . . . Propulsion 2 | . . 2 Utility . | . . . Weapon . | . . . Parts Attached 43 | 7 14 22 Power 5 | 1 . 4 Engine 5 | 1 . 4 Core . | . . . Reactor . | . . . Propulsion 17 | 2 4 11 Treads . | . . . Leg 6 | 2 4 . Wheel . | . . . Hover 4 | . . 4 Flight 7 | . . 7 Utility 6 | 2 2 2 Device 1 | . . 1 Storage 4 | 2 1 1 Processor . | . . . Hackware 1 | . 1 . Protection . | . . . Artifact . | . . . Weapon 15 | 2 8 5 Energy Gun 3 | . 2 1 Energy Cannon . | . . . Ballistic Gun 6 | 2 3 1 Ballistic Cannon 3 | . 1 2 Launcher 3 | . 2 1 Special Weapon . | . . . Impact Weapon . | . . . Slashing Weapon . | . . . Piercing Weapon . | . . . Special Melee Weapon . | . . . Unidentified Prototypes . | . . . Parts Lost 11 | . 1 10 Power 1 | . . 1 Propulsion 5 | . . 5 Utility 3 | . 1 2 Weapon 2 | . . 2 Highest Loss Streak 9 | . 1 9 To Critical Strikes . | . . . Average Slot Usage (%) 90 | . 98 81 Engine 11 | . 14 9 Leg 14 | . 28 . Hover 15 | . . 32 Flight 1 | . . 3 Storage 15 | . 20 11 Hackware 5 | . 6 3 Energy Gun 5 | . 5 5 Ballistic Gun 13 | . 19 7 Ballistic Cannon 4 | . 2 6 Naked Turns . | . . . Heaviest Build 23 | 14 15 23 Greatest Support 24 | 20 20 24 Greatest Overweight (x) 4 | . 1 4 Average Overweight (x) . | . . . Largest Inventory Capacity 10 | 8 8 10 Average Capacity 8 | 7 8 9 Most Carried 10 | 8 8 10 Average Carried 7 | 4 7 8 Final Capacity 10 | 8 8 10 Final Carried 8 | 8 8 7 Class Distribution -------------------- 96% | Mutant 3% | Scavenger-Mutant Dominant Class ---------------- Mutant | -10/Materials Mutant | -9/Materials Resources | -11 -10 -9 ----------- Run | Yrd Mat Mat Matter Collected 814 | 348 190 276 Remotely . | . . . Salvage Created 707 | 102 304 301 Parts 43 | 5 19 19 Haulers Intercepted 2 | . . 2 Recyclers Shooed 2 | . 2 . Parts Field Recycled . | . . . Retrieved Matter . | . . . Parts Self-Destructed . | . . . Prevented . | . . . Kills | -11 -10 -9 ------- Run | Yrd Mat Mat Combat Hostiles Destroyed 15 | . 10 5 Guns 10 | . 5 5 Cannons 1 | . 1 . AOE 4 | . 4 . Classes Destroyed 10 | 3 4 3 Worker 2 | 2 . . Builder 1 | . 1 . Tunneler 1 | 1 . . Hauler 2 | . . 2 Recycler 2 | 1 1 . Operator 2 | . 1 1 Swarmer 6 | . 6 . Grunt 7 | . 4 3 Duelist 1 | . . 1 Sentry 1 | . . 1 Best Kill Streak 5 | 4 5 3 Combat Bots Only 3 | . 3 2 Max Kills in Single Turn 2 | 1 2 1 Gunslinging . | . . . Exploded 2 | . 2 . Melee . | . . . Uniques/NPCs Destroyed . | . . . Combat | -11 -10 -9 -------- Run | Yrd Mat Mat Hostile Shots Fired 187 | . 59 128 Missed 55 | . 15 40 Damage Taken 1528 | . 440 1088 Core 523 | . 121 402 Absorbed by Shields . | . . . Core Remaining (%) 75 | 100 51 . Volleys Fired 67 | 7 34 26 Largest 2 | 2 2 2 Hottest 88 | 40 75 88 Shots Fired 128 | 14 68 46 Gun 115 | 14 62 39 Cannon 11 | . 4 7 Launcher 2 | . 2 . Special . | . . . Kinetic 106 | 14 62 30 Thermal 20 | . 4 16 Explosive 2 | . 2 . Electromagnetic . | . . . Robot Hit Streak 7 | 7 5 7 Robot Miss Streak 3 | 3 2 3 Penetration Max . | . . . Secondary Targets . | . . . Shots Hit Robots 78 | 9 41 28 Core Hits 41 | 6 23 12 Critical Kills . | . . . Critical Parts Destroyed . | . . . Critical Strikes 3 | . . 3 Burn 2 | . . 2 Blast 1 | . . 1 Melee Attacks . | . . . Impact . | . . . Slashing . | . . . Piercing . | . . . Sneak Attacks . | . . . Combat Hostiles . | . . . Follow-up Attacks . | . . . Damage Inflicted 1319 | 96 727 496 Guns 886 | 96 384 406 Cannons 106 | . 36 70 Explosions 296 | . 296 . Melee . | . . . Ramming 31 | . 11 20 Kinetic 764 | 96 385 283 Thermal 228 | . 35 193 Explosive 296 | . 296 . Electromagnetic . | . . . Impact . | . . . Slashing . | . . . Piercing . | . . . Highest Corruption 3 | . . 3 Average Corruption 3 | . . 3 Corruption Purged . | . . . Corruption Blocked . | . . . Effects 3 | . . 3 Message Errors 1 | . . 1 Energy Discharges 1 | . . 1 Parts Fused 1 | . . 1 Overload Shots . | . . . Overflow Damage 21 | . 21 . Projectiles . | . . . Explosions 21 | . 21 . Melee . | . . . Knockbacks 3 | . 1 2 Impact 1 | . 1 . Kinetic 2 | . . 2 Secondary . | . . . Self-Inflicted Damage 9 | . . 9 Shots . | . . . Rammed 2 | . . 2 Targets Rammed 7 | . 5 2 Kicked 5 | . 5 . Crushed . | . . . Highest Temperature 366 | . 84 366 Average Temperature 108 | . 22 138 Received Heat Transfer 690 | . 174 516 Effects 1 | . . 1 Energy Bleed 1 | . . 1 Siege Activations . | . . . Robots Corrupted . | . . . Combat Hostiles . | . . . Parts Fried . | . . . Impact Corruptions . | . . . Robots Melted . | . . . Combat Hostiles . | . . . Parts Melted 1 | . . 1 Heat Transferred 667 | . 75 592 Parts Sabotaged . | . . . Parts Stolen . | . . . Parts Stripped . | . . . Power Chain Reactions . | . . . Alert | -11 -10 -9 ------- Run | Yrd Mat Mat Peak Influence 335 | 20 270 335 Initial 13 | . 13 . Average 115 | 6 125 145 Maximum Alert Level 1 | . 1 1 Low Security (%) 76 | 100 80 62 Level 1 23 | . 19 37 Level 2 . | . . . Level 3 . | . . . Level 4 . | . . . Level 5 . | . . . High Security . | . . . Max Security . | . . . Squads Dispatched 8 | . 2 6 Investigation 4 | . 1 3 Extermination . | . . . Reinforcement 4 | . 1 3 Assault . | . . . Garrison . | . . . Intercept . | . . . Searches Triggered . | . . . Construction Impeded . | . . . Haulers Reinforced . | . . . Active Scanning Responses . | . . . Cargo Convoy Interrupts . | . . . Stealth | -11 -10 -9 --------- Run | Yrd Mat Mat Distress Signals 3 | . 1 2 Communications Jammed . | . . . Distress Signals . | . . . Times Spotted 41 | . 14 27 Peak Tracking Total 12 | . 4 12 Tactical Retreats 5 | . . 5 Traps | -11 -10 -9 ------- Run | Yrd Mat Mat Traps Triggered 4 | . 1 3 Indirectly . | . . . Trap Hack Attempts . | . . . Triggered . | . . . Disarmed . | . . . Reprogrammed . | . . . Reused . | . . . Traps Extracted . | . . . Installed . | . . . Triggered . | . . . Machines | -11 -10 -9 ---------- Run | Yrd Mat Mat Machines Disabled 1 | . . 1 Max in Single Turn 1 | . . 1 Machines Repaired . | . . . Machines Dismantled . | . . . Machines Sabotaged . | . . . Overloaded Fab Kills . | . . . Hacking | -11 -10 -9 --------- Run | Yrd Mat Mat Machines Accessed 4 | . 3 1 Terminals 3 | . 2 1 Fabricators . | . . . Repair Stations . | . . . Recycling Units 1 | . 1 . Scanalyzers . | . . . Garrison Access . | . . . Total Hacks 10 | . 9 1 Successful 7 | . 6 1 Failed 3 | . 3 . Catastrophic . | . . . Database Lockouts . | . . . Manual 2 | . 1 1 Terminals 6 | . 5 1 Fabricators . | . . . Repair Stations . | . . . Recycling Units 4 | . 4 . Scanalyzers . | . . . Garrison Access . | . . . Terminal Hacks 4 | . 3 1 Record 1 | . 1 . Prototype ID Bank 1 | . 1 . Unreport Threat 1 | . 1 . Recall Reinforcements 1 | . . 1 Fabricator Hacks . | . . . Repair Station Hacks . | . . . Recycling Unit Hacks 3 | . 3 . Retrieve Components 3 | . 3 . Scanalyzer . | . . . Garrison Access Hacks . | . . . Unauthorized Hacks . | . . . Terminals . | . . . Fabricators . | . . . Repair Stations . | . . . Recycling Units . | . . . Scanalyzers . | . . . Garrison Access . | . . . Data Cores Recovered . | . . . Used . | . . . Hacking Detections 2 | . 2 . Full Trace Events 1 | . 1 . Feedback Events . | . . . Feedback Blocked . | . . . Robot Schematics Acquired . | . . . Robots Built . | . . . Authchips . | . . . Time . | . . . Total Robot Build Rating . | . . . Part Schematics Acquired . | . . . Parts Built . | . . . Authchips . | . . . Time . | . . . Total Part Build Rating . | . . . Parts Repaired . | . . . Time . | . . . Parts Recycled . | . . . Recycled Matter . | . . . Retrieved Matter . | . . . Retrieved Components 6 | . 6 . Parts Scanalyzed . | . . . Part Schematics Acquired . | . . . Parts Damaged . | . . . Bothacking | -11 -10 -9 ------------ Run | Yrd Mat Mat Used RIF Installer . | . . . Robots Hacked . | . . . Non-combat . | . . . Combat . | . . . Robot Hacks Applied . | . . . Relay Couplers Released . | . . . Fabnet Peak Effective % . | . . . Robots Rewired . | . . . Allies Hacked . | . . . Hacks Repelled . | . . . Allies | -11 -10 -9 -------- Run | Yrd Mat Mat Total Allies . | . . . Largest Group . | . . . Highest-Rated Group . | . . . Highest-Rated Ally . | . . . Total Orders . | . . . Ally Attacks . | . . . Total Damage . | . . . Kills . | . . . Allies Corrupted . | . . . Allies Melted . | . . . Intel | -11 -10 -9 ------- Run | Yrd Mat Mat Robot Analysis Total . | . . . Derelict Logs Recovered . | . . . Drone Launches . | . . . Drone Recoveries . | . . . Exploration | -11 -10 -9 ------------- Run | Yrd Mat Mat Turns Passed 913 | 139 411 363 Spaces Moved 709 | 85 224 400 Core 8 | 5 . 3 Treads . | . . . Legs 304 | 80 224 . Wheels . | . . . Hover 364 | . . 364 Flight 33 | . . 33 Fastest Speed 31 | 50 120 31 Average Speed 83 | 115 120 55 Slowest Speed 250 | 120 190 250 Overloaded Moves . | . . . Propulsion Burnouts . | . . . Robots Hopped 1 | . . 1 Cave-ins Triggered . | . . . Exploration Rate (%) 29 | 5 43 40 Regions Visited 2 Branch Regions . Pre-discovered Areas . | . . . Known Exits Taken . | . . . Unknown Exits Taken 2 | 1 1 . Scrap Searched . | . . . Spaces Dug . | . . . Terrain Destroyed 10 | . 10 . Melee . | . . . Projectile . | . . . AOE 10 | . 10 . Terrain Rammed . | . . . Walls Destroyed . | . . . Machines Disabled . | . . . Actions | -11 -10 -9 --------- Run | Yrd Mat Mat Total 928 | 112 309 507 Wait 31 | 2 4 25 Move 705 | 84 223 398 Hop 1 | . . 1 Pick Up 31 | 10 11 10 Fast Attach 22 | 7 7 8 Attach 8 | . . 8 Detach 5 | . . 5 Swap 13 | . 7 6 Drop 38 | 2 18 18 Fire 67 | 7 34 26 Melee . | . . . Ram 2 | . . 2 Kick 5 | . 5 . Crush . | . . . Escape Stasis . | . . . Rewire . | . . . Trap . | . . . Miscellaneous . | . . . Route ------- -11/Scrapyard -10/Materials (discovered 2 exits: *Mat / [*Min]) -9/Materials History --------- Turn | Location | Event 3 | -11/Scrapyard | Discovered new exit (range 15) 140 | -11/Scrapyard | Entered Materials 256 | -10/Materials | Discovered new exit (range 7) 350 | -10/Materials | Build established: Mutant 512 | -10/Materials | Discovered new exit (range 8) 551 | -10/Materials | Entered another Materials area 551 | -9/Materials | Evolved 2 slots: Propulsion x2 883 | -9/Materials | Core integrity fell below 50% 912 | -9/Materials | Core integrity fell below 20% 914 | -9/Materials | Destroyed by Y-45 Defender with Heavy Assault Rifle Last Messages --------------- 00831_ R-06 Scavenger collects Lgt. Treads. 00832_ Hover Unit destroyed. 00834_ R-06 Scavenger collects Ion Engine. 00835_ U-05 Engineer lays Concrete. 00836_ K-01 Serf collects debris. 00837_ U-05 Engineer lays Concrete. 00838_ R-06 Scavenger collects Hvy. Assault Rifle. 00839_ U-05 Engineer lays Concrete. 00842_ Acquired 33 matter. 00844_ K-01 Serf cleans the Atomic Centrifuge. 00846_ Critical hit (Burn: +37). 00846_ Hover Unit destroyed. 00852_ L-31 Rogue destroyed. 00855_ Acquired 45 matter. 00857_ Imp. Ion Engine destroyed. 00860_ Particle Gun destroyed. 00876_ Hover Unit destroyed. 00877_ Autogun destroyed. 00905_ Flight Unit destroyed. 00908_ Cooling System destroyed. Map ----- +----------------------------------------------------+ | ????????????????????# #??????????# " #??? | | ????????????????????# !#??????????# #??? | | ???????????#######??# ##########?# #??? | | ???????????# #??# + #?### ###??? | | ???????????# """ #??# ## #???# #????? | | ???????????# "T" #??# ## #???# ###### | | ???????????# ########+##### #???# | | ???????????# # #???# ###### | | ???????????#/ ] # #???# #????? | | ???????????# !+ """ """ #???#!#????? | | ???????????# """ # """ """ #???#[#????? | | ???????????# """ # """ """ #???# ###### | | ???????????# """ # #???# | | ???????????# # ##??# = | | ???????????# # """ """ T#??# """ | | ???????????####### """ """ ##??# """ | | ???????????# ## """ """ #???# """ | | ???????????# # * ###?# | | ???????????# /+ !!""#?# | | ???????????# # """ """ ![Y"#?# """ | | ???????????# %####### """ """ ""#?# """ | | ???????????# %""#?????# """ """ ###?# "" | | ???????????# T"#?????# gg #???# % | | ???????????# ""#?????# Y ##### | | ???????????# #?????# g Y | | ???????????#### #?????# @ gg #####+########### | | ??????????????###?????# Y #?#! # # | | ??????????????????????###g##### #?# # /! | | ??????????????????????? ??# #?# # """ # | | ??????????????????????# ## ### """ / """ # | | ??????????????????????# """ + + """ # """ + | | ??????????????????????# """ ###### """ # ## | | ??????????????????????# """ #????###############? | | ??????????????????????# #???????????????????? | | ??????????????????????########???????????????????? | | ?????????????????????????????????????????????????? | | | | | | | | | | | | | | | | | | | | | | | | | | | | | +----------------------------------------------------+ Best States ------------- Heat Dissipation 50 Energy Generation 12 Energy Capacity 265 Matter Stores 350 Matter Capacity 400 Sight Range 16 Terrain Scan Density 10 Evasion (%) 63 Offensive Hacking 10 Authchip Count 1 Item Schematics ----------------- None Robot Schematics ------------------ None Fabricated ------------ Nothing Alien Tech Used ----------------- None Achievements -------------- None Challenges ------------ None Game ------ Seed TitaniumFusionConstruct Manual? 0 Play Time 00:12:55 Cumulative 167.4 hours Start 2024.05.16 @ 21:57:01 End 2024.05.16 @ 22:06:34 Sessions 1 Manual Loads 0 Difficulty Rogue Special Mode None Game No. 333 Rogue 333 Adventurer 0 Explorer 0 Win Type - Total 0 Types 0/0/0/0/0/0/0/0/0 Lore% 46 Gallery% 63 Achievement% 44 Wizard Run 0 Options --------- Layout 0 ASCII 0 Keyboard 1 Movement Numpad Keybinds 0 Fullscreen 2 Font 18/X11 Map View 76x50 Zoom Use 0% Tactical HUD 1 Map Filters NONE Filters NONE Steam 1 RUN: 17a5957a-10d1-4a4d-af0c-f652fc9134cc